{"text_format":"1","workbook":"xlsx","n_sheets":1,"sheets":["conceptos"],"not_rendered":{"charts":0,"images":2,"macros":1,"external_links":0,"defined_names":1,"comments":0,"pivot_tables":0},"unopened":[],"bounds":{"document_bytes":16777216,"sheet_cells":100000,"rows_first":2000,"rows_last":500,"rows_between":2000,"halvings":0,"cell_chars":16384,"cell_head_chars":4096},"cells_cut":0,"cells_raw":0,"read":"whole","date_system":"1900"}

{"sheet":"conceptos","index":0,"n_rows":65,"n_cols":8,"rows_kept":65,"cut":false,"hidden":false,"merged":[[62,0,62,4],[63,0,64,4],[13,0,13,6],[0,2,0,5],[9,2,9,5],[1,2,3,5],[4,2,4,3],[6,2,6,3],[7,2,7,3],[4,4,4,5],[5,4,5,5],[6,4,6,5],[7,4,7,5],[10,2,10,5],[11,2,11,5],[5,1,8,1]]}
[null,"GOBIERNO DEL ESTADO DE JALISCO","LICITACIÓN PÚBLICA ESTATAL"]
[null,"INSTITUTO DE LA INFRAESTRUCTURA FÍSICA EDUCATIVA DEL","INFEJAL-E-REMB2019-B-CON-06856-LP-0168-2021"]
[null,"ESTADO DE JALISCO"]
[]
[null,"DESCRIPCIÓN GENERAL DE LOS TRABAJOS:","FECHA DE INICIO:"]
[null,null,null,"FECHA DE TERMINACIÓN:"]
[null,null,"PLAZO DE EJECUCIÓN:"]
[null,null,"FECHA:"]
[]
[null,"RAZÓN SOCIAL DEL LICITANTE:","NOMBRE, CARGO Y FIRMA DEL LICITANTE:",null,null,null,"DOCUMENTO"]
[]
[]
[]
["PRESUPUESTO DE OBRA"]
[]
["CLAVE","DESCRIPCIÓN","UNIDAD","CANTIDAD","PRECIO UNITARIO ($)","PRECIO UNITARIO ($) CON LETRA","IMPORTE ($) M.N."]
["TRABAJO : BAS-CON-06856","CONSTRUCCIÓN DE OBRA COMPLEMENTARIA EN EL JARDÍN DE NIÑOS JAIME TORRES BODET CCT 14DJN0732V, UBICADO EN LA LOCALIDAD EL SALITRE, MUNICIPIO DE SAN MARTÍN DEL HIDALGO, JALISCO.\n",null,null,null,null,{"$f":"TEXT((G18), \"$ #,##0.00 ;\")","v":"$ 0.00 "}]
["E","EDIFICIO E",null,null,null,null,{"$f":"TEXT(SUM(G19 + G21 + G23 + G25 + G27 + G29 + G32 + G40 + G43), \"$ #,##0.00 ;\")","v":"$ 0.00 "}]
["E.01(319)","ENTREPISOS, CUBIERTA Y ACABADOS DE AZOTEA         ",null,null,null,null,{"$f":"TEXT(SUM(G20:G20), \"$ #,##0.00 ;\")","v":"$ 0.00 "}]
[344125,"IMPERMEABILIZACION DE MUROS O LOSAS, A BASE DE MEMBRANA PREFABRICADA, MCA. IMPERQUIMIA, UNIPLAS AERO PLUS SBS, ALTO DESEMPEÑO CON VENTILACION ANTIABOLSAMIENTOS, FABRICADA A BASE DE ASFALTOS MODIFICADOS CON POLIMEROS SINTETICOS SBS (ESTIRENO BUTADIENO ESTIRENO) REFORZADA CON MALLA POLIESTER DE ALTA RESISTENCIA, ACABADO APARENTE A BASE DE GRAVILLA ESMALTADA A FUEGO, 4.5 MM  DE ESPESOR TOTAL, COLOR ROJO TERRACOTA, GARANTIA POR ESCRITO DE 10 AÑOS, POR LA EMPRESA CONTRATISTA., INCLUYE: LIMPIEZA Y PREPARACION DE LA SUPERFICIE, APLICACION DE PRIMER IMPERCOAT PRIMARIO SL, PARA ANCLAJE Y TAPAPORO DE LA SUPERFICIE, SELLADO DE FISURAS Y GRIETAS A BASE DE CEMENTO PLASTICO BITUMINOSO IMPERCOAT CEMENTO SBS, SUMINISTRO Y COLOCACION DE MEMBRANA POR MEDIO DE TERMOFUSION A BASE DE FUEGO DE SOPLETE DE GAS BUTANO, HACIENDO TRASLAPES MINIMOS DE 0.10 MTS. EN AMBOS SENTIDOS, SELLADO DE ORILLAS, REMATES Y TRASLAPES, MATERIALES MENORES Y DE CONSUMO, CORTES, DESPERDICIOS, LIMPIEZA GENERAL, HERRAMIENTAS, MANO DE OBRA ESPECIALIZADA Y ACARREOS AL SITIO DE SU COLOCACION.","M2 ","300.0000",0,"CERO PESOS 00/100 M.N.",0,384405]
["E.02(355)","RECUBRIMIENTOS Y ACABADOS                         ",null,null,null,null,{"$f":"TEXT(SUM(G22:G22), \"$ #,##0.00 ;\")","v":"$ 0.00 "}]
[358041,"SUMINISTRO Y COLOCACION DE LOSETA CERAMICA PARA MURO ( AZULEJO ), CON RECUBRIMIENTO ESMALTADO, DE 25 X 50 CM., MCA. INTERCERAMIC, LINEA SPA WHITE DE PRIMERA CALIDAD, ASENTADO CON PEGAZULEJO Y JUNTEDO CON JUNTEADOR DE COLOR, JUNTAS A HUESO, INCLUYE: TRAZO, CORTE, REMATES, ESCUADRE, DESPERDICIOS, DESPATINADO, EMBOQUILLADOS, CERTIFICADO DE CALIDAD, HERRAMIENTAS, MATERIALES, MANO DE OBRA, LIMPIEZA Y ACARREO DE MATERIALES AL SITIO DE SU UTILIZACION, A CUALQUIER NIVEL.","M2 ","38.0000",0,"CERO PESOS 00/100 M.N.",0,384406]
["E.03(372)","PISOS                                             ",null,null,null,null,{"$f":"TEXT(SUM(G24:G24), \"$ #,##0.00 ;\")","v":"$ 0.00 "}]
[962162,"SUMINISTRO Y COLOCACION DE PISO DE  LOSETA CERAMICA DE 33 X 33 CM., MCA. INTERCERAMIC DE PRIMERA, LINEA NIZA, DE CUALQUIER COLOR, GRADO DE DUREZA (PEI) \"IV\" , ASENTADO CON PEGAPISO Y JUNTEDO CON JUNTEADOR DE COLOR,  JUNTAS DE 4 MM. DE ANCHO, INCLUYE: TRAZO, CORTE, REMATES, ESCUADRE, DESPERDICIOS, DESPATINADO, EMBOQUILLADOS, CERTIFICADO DE CALIDAD, HERRAMIENTAS, MATERIALES,  MANO DE OBRA, LIMPIEZA  Y ACARREO DE MATERIALES AL SITIO DE SU UTILIZACION, A CUALQUIER ALTURA.","M2 ","190.0000",0,"CERO PESOS 00/100 M.N.",0,384407]
["E.04(382)","ELEMENTOS COMPLEMENTARIOS DE ALBAÑILERIA          ",null,null,null,null,{"$f":"TEXT(SUM(G26:G26), \"$ #,##0.00 ;\")","v":"$ 0.00 "}]
[383312,"CANAL DE DESAGUE EN SANITARIOS, DE 12.0 X 12.0 CM DE SECCION INTERIOR, FORJADO CON CONCRETO F'C=150 KG/CM2, ACABADO COMUN, RECUBIERTO CON LOSETA CERAMICA DE PRIMERA CALIDAD IGUAL AL DEL AREA CONTIGUA, JUNTEADO CON JUNTEADOR DE COLOR, INCLUYE: ACARREO DE MATERIALES AL SITIO DE SU UTILIZACION, A CUALQUIER NIVEL.","ML ","12.5000",0,"CERO PESOS 00/100 M.N.",0,384408]
["E.05(390)","CARPINTERIA                                       ",null,null,null,null,{"$f":"TEXT(SUM(G28:G28), \"$ #,##0.00 ;\")","v":"$ 0.00 "}]
[422018,"SUMINISTRO Y COLOCACION DE PUERTA PREFABRICADA, CON MEDIDAS GENERALES DE 0.90 X 2.10 MTS.,  MCA. PORCELTECH O SIMILAR EN GARANTIA Y CALIDAD. MOD. BETA, TIPO TAMBOR DE 36 MM. DE ESPESOR, FABRICADA CON BASTIDOR DE PERFIL TUBULAR  GALVANIZADP DE 1 1/4\" , NUCLEO RELLENO CON PANEL HONEY COMB DE 1 3/8\" DE ESPESOR Y DOBLE CARA (INTERIOR-EXTERIOR) DE  LAMINA DE ACERO PORCELANIZADO CAL. 24,  EN COLOR INDICADO POR LA SUPERVISION Y CUBRECANTOS DE ALUMINIO ANODIZADO NATURAL , MARCO DE HERRERIA TUBULAR DE PERFILES COMERCIALES DE 3\" X 1 1/2\" CAL 14., TOPE DE ANGULO DE 3/4\" X 1/8\", INCLUYE: MARCO, HERRAJES, BISAGRAS, NIVELACION, PLOMEO, ELEMENTOS DE FIJACION, MATERIALES MENORES Y DE CONSUMO, SELLADO PERIMETRAL, HERRAMIENTAS, LIMPIZA, MANO DE OBRA, FLETES Y ACARREOS DE MATERIALES AL SITIO DE SU COLOCACION, EN CUALQUIER NIVEL.","PZA","5.0000",0,"CERO PESOS 00/100 M.N.",0,384409]
["E.06(393)","PINTURA                                           ",null,null,null,null,{"$f":"TEXT(SUM(G30:G31), \"$ #,##0.00 ;\")","v":"$ 0.00 "}]
[393022,"PINTURA VINIL-ACRÍLICA A BASE DE AGUA ACABADO SEMIMATE  LAVABLE, PARA INTERIORES Y EXTERIORES QUE NO DESPRENDA VAPORES TÓXICOS NI OLORES DESAGRADABLES, CON LAS SIGUIENTES CARACTERÍSTICAS ( SÓLIDOS POR PESO 46-52%, SÓLIDOS POR VOLUMEN 30-36%, VISCOSIDAD DE 100-130 UK A 25°C, DENSIDAD > O = 1.2 TON/M3., LAVABILIDAD > O = 4,000 CICLOS, TIEMPO DE SECADO AL TACTO, 30-40 MIN., TIEMPO DE SECADO DURO < O = 8 HRS., CICLO DE CURADO DE 7 DIAS, PH 6-8, RENDIMIENTO EN SUP. LISA 8-10 M2/LT., FINEZA DE MOLIDO (HEGMAN) 3-7 UH.)  EN MUROS APLANADOS DE MEZCLA APALILLADO O PULIDO, TRABAJO TERMINADO, A DOS MANOS, INCLUYE: MATERIALES MENORES Y DE CONSUMO, ANDAMIOS, PREPARACION DE LA SUPERFICIE, SELLADO DE LA SUPERFICIE, HERRAMIENTAS, LIMPIEZA, MANO DE OBRA Y  ACARREOS DE MATERIALES AL SITIO DE SU UTILIZACIÓN.","M2 ","30.0000",0,"CERO PESOS 00/100 M.N.",0,384410]
[393142,"PINTURA DE ESMALTE ALQUIDALICO ANTICORROSIVO, ACABADO BRILLANTE, PARA INTERIORES Y EXTERIORES QUE NO DESPRENDA VAPORES TÓXICOS NI OLORES DESAGRADABLES, CON LAS SIGUIENTES CARACTERÍSTICAS ( SÓLIDOS POR PESO 49-60%, SÓLIDOS POR VOLUMEN 40-46%, VISCOSIDAD DE 110-160 UK A 25°C, DENSIDAD 0.9-1.2 TON/M3., BRILLO A 60°C, 90%, TIEMPO DE SECADO AL TACTO, < O = 6 HRS., TIEMPO DE SECADO DURO < O = 24 HRS., ADHERENCIA 100%, RENDIMIENTO EN SUP. LISA 8-10 M2/LT., DILUCIÓN MÁXIMA (AGUARRÁS, THINER), 15 %,  EN HERRERIA ABIERTA DE PERFILES ESTRUCTURALES (PROTECCIONES), MEDIDA POR UN SOLO LADO, TRABAJO TERMINADO, A DOS MANOS, INCLUYE: MATERIALES MENORES Y DE CONSUMO, ANDAMIOS, PREPARACION DE LA SUPERFICIE, HERRAMIENTAS, LIMPIEZA, MANO DE OBRA Y  EQUIPO DE SEGURIDAD. A CUALQUIER NIVEL. (LA PINTURA ES POR AMBOS LADOS DE LA HERRERIA, PERO PARA SU PAGO ES MEDIDA SOLO POR 1 SOLO LADO).","M2 ","90.0000",0,"CERO PESOS 00/100 M.N.",0,384411]
["E.07(410)","CANCELERIA, HERRERIA, ALUMINIO, VIDRIOS Y CHAPAS  ",null,null,null,null,{"$f":"TEXT(SUM(G33:G39), \"$ #,##0.00 ;\")","v":"$ 0.00 "}]
[412043,"FABRICACION, SUMINISTRO Y COLOCACION DE PROTECCIONES PARA VENTANERIA A BASE DE HERRERIA ESTRUCTURAL DE ACERO, ELABORADA CON UN PERFIL PERIMETRAL DE TUBULAR DE 1 1/2\" X 1 1/2\" CAL. 18,  HORIZONTALES DE REDONDO SOLIDO LISO DE 1/2\" SEPARADOS  DE C. A C. 11.5 CM. PROMEDIO Y REFUERZOS VERTICALES DE SOLERA DE 3/16\" X 1 1/4\" COLOCADOS A @ 67 CM. PROMEDIO, CON PERFORACIONES PARA INSERCION DE REDONDOS. SOLDADA A ESTRUCTURA METALICA, INCLUYE: TRAZO, CORTES, SOLDADURA, NIVELACION, PLAMEO, PERFORACIONES, PINTURA DE TALLER,  AJUSTES Y DETALLES REALIZADOS EN OBRA DE ACUERDO A LO CONSTRUIDO,  ACARREOS, LIMPIEZA, MATERIALES, DESPERDICIOS, HERRAMIENTAS, EQUIPOS, MANO DE OBRA CALIFICADA Y ACARREO DE MATERIALES AL SITIO DE SU COLOCACION. EN CUALQUIER NIVEL.","M2 ","90.0000",0,"CERO PESOS 00/100 M.N.",0,384412]
[420022,"SUMINISTRO, HABILITADO Y COLOCACION DE CANCELERIA FABRICADA  EN ALUMINIO ANODIZADO NATURAL CON PERFILES COMERCIALES DE 2\" X 1.25\",  MCA. CUPRUM ,  LINEA PANORAMA O SIMILAR, INCLUYE: TRAZO, CORTES, AJUSTES, MATERIALES, CORREDERAS, JALADERAS, OPERADORES, REPISON, SELLADO PERIMETRAL, SILICON, VINIL, HERRAJES, ELEMENTOS DE FIJACION, MATERIALES MENORES Y DE CONSUMO, DESPERDICIOS, HERRAMIENTAS, MANO DE OBRA ESPECIALIZADA, LIMPIEZA, FLETES, EQUIPO Y ACARREO DE MATERIALES AL SITIO DE SU COLOCACION, A CUALQUIER NIVEL.","M2 ","94.0000",0,"CERO PESOS 00/100 M.N.",0,384413]
[424094,"SUMINISTRO Y COLOCACION DE CERRADURA TIPO EUROPEO PARA PUERTA EXTERIOR, MCA. JAKO, MOD. KIT9001ENT, FABRICADA EN ACERO INOXIDABLE CON ACABADO SATINADO, DOBLE MANIJA DE PERFIL TUBULAR REDONDO Y CILINDRO LLAVE-MARIPOSA, INCLUYE: TRAZO, TALADROS, ELEMENTOS DE FIJACION, HERRAMIENTAS, CILINDRO, CHAPETÓN, LLAVES, LIMPIEZA,  MANO DE OBRA Y  ACARREO DE MATERIAL AL SITIO DE SU UTILIZACION.","PZA","5.0000",0,"CERO PESOS 00/100 M.N.",0,384414]
[424322,"SUMINISTRO Y COLOCACION DE TOPES DE PISO PARA PUERTA. INC.: ACARREO DE MATERIAL AL SITIO DE SU UTILIZACION, A CUALQUIER NIVEL.","PZA","5.0000",0,"CERO PESOS 00/100 M.N.",0,384415]
[426010,"SUMINISTRO Y COLOCACION DE CRISTAL FLOTADO DE 6 MM. DE ESPESOR,  ASENTADO CON SILICON, INCLUYE: CORTES, DESPERDICIOS Y ACARREO DE MATERIALES AL SITIO DE SU UTILIZACION A CUALQUIER NIVEL.","M2 ","75.0000",0,"CERO PESOS 00/100 M.N.",0,384416]
[426525,"SUMINISTRO Y COLOCACION DE ESPEJO DE CRISTAL FLOTADO DE 6 MM. CON MARCO DE ALUMINIO ANODIZADO NATURAL DE 1 1/2\", INCLUYE: MATERIALES MENORES Y DE CONSUMO,  ELEMENTOS DE FIJACION, MARCO DE ALUMINIO, VINILO, PIJAS, HERRAMIENTAS, LIMPIEZA Y MANO DE OBRA ESPECIALIZADA.","M2 ","5.0000",0,"CERO PESOS 00/100 M.N.",0,384417]
[907361,"SUMINISTRO Y COLOCACION DE PUERTAS Y/O  MAMPARAS MCA.  MODUMEX, LINEA LEEDER,  MODELO ESTANDAR, FABRICADAS CON CAPAS DE FIBRA CELULOSA, PAPEL DECORATIVO Y RESINAS,  BAJO UN PROCESO DE LAMINADO PLASTICO DE ALTA PRESION, CON UN ESPESOR TOTAL DE 12.7 MM. , CON ACABADO ANTI GRAFFITI,  EN COLOR INDICADO EN OBRA POR LA SUPERVISION,  INCLUYE: HERRAJES, PASADORES CON AVISO DE VACANTE Y OCUPADO, BISAGRAS, TOPES, JALADERAS, SOPORTES INFERIORES PARA PILASTRA REDONDOS DE ACERO INOXIDABLE CAL. 12 Y CAPUCHON DE NYLON,  DESPERDICIOS, AJUSTES,  MATERIALES DE FIJACION, MANO DE OBRA ESPECIALIZADA, HERRAMIENTAS, MANO DE OBRA, LIMPIEZA Y ACARREO DE MATERIALES AL SITIO DE SU UTILIZACION. (AREA EFECTIVA DE LA MAMPARA)","M2 ","13.1800",0,"CERO PESOS 00/100 M.N.",0,384418]
["E.08(510)","INSTALACION ELECTRICA EN EDIFICIO                 ",null,null,null,null,{"$f":"TEXT(SUM(G41:G42), \"$ #,##0.00 ;\")","v":"$ 0.00 "}]
[550090,"SUMINISTRO E INSTALACION DE LUMINARIO FLUORESCENTE DE SOBREPONER, TIPO ENVOLVENTE, AHORRADOR DE ENERGIA DE 2 X 32 WATTS. FABRICADO EN LAMINA CAL 22, RECUBIERTO CON TRATAMIENTO FOSFATIZADO Y PINTURA ACRILICA O POLIESTER COLOR BLANCO, APLICADA ELECTROSTATICAMENTE Y TERMOENDURECIDA, PARA OBTENER UNA REFLECTANCIA MINIMA DE 90%, CON DIFUSOR ACRILICO PRISMATICO 100% PURO, TIPO ENVOLVENTE, CON UNA LONGITUD DE 120 CM., BALASTRO ELECTRONICO DE BAJA EMISION DE ARMONICAS, PARA OPERAR UNA O DOS LAMPARAS T8 DE 32 WATTS, LA LUMINARIA (COMPLETA) DEBERA CUMPLIR CON LA NORMA ANCE, INCLUYE: COPIA DE CERTIFICACION ANCE ANEXA EN ELTRAMITE DE LA ESTIMACION, FIJACION, CONEXION, MATERIALES MENORES, HERRAMIENTAS, GARANTIAS,  MANO DE OBRA, PRUEBAS Y ACARREOS.","PZA","6.0000",0,"CERO PESOS 00/100 M.N.",0,384419]
[550190,"SUMINISTRO E INSTALACION DE LUMINARIO FLUORESCENTE DE SOBREPONER, TIPO ENVOLVENTE, AHORRADOR DE ENERGIA DE 2 X 59 WATTS. FABRICADO EN LAMINA CAL 22, RECUBIERTO CON TRATAMIENTO FOSFATIZADO Y PINTURA ACRILICA O POLIESTER COLOR BLANCO, APLICADA ELECTROSTATICAMENTE Y TERMOENDURECIDA, PARA OBTENER UNA REFLECTANCIA MINIMA DE 90%, CON DIFUSOR ACRILICO PRISMATICO 100% PURO, TIPO ENVOLVENTE, CON UNA LONGITUD DE 240 CM., BALASTRO ELECTRONICO DE BAJA EMISION DE ARMONICAS, PARA OPERAR UNA O DOS LAMPARAS T8 DE 59 WATTS, (EQUIVALENTE A 4 LAMPARAS T8 DE 32 WATTS.), LA LUMINARIA (COMPLETA) DEBERA CUMPLIR CON LA NORMA ANCE, INCLUYE: COPIA DE CERTIFICACION ANCE ANEXA EN EL TRAMITE DE LA ESTIMACION, FIJACION, CONEXION, MATERIALES MENORES, HERRAMIENTAS, GARANTIAS, MANO DE OBRA, PRUEBAS Y ACARREOS.","PZA","12.0000",0,"CERO PESOS 00/100 M.N.",0,384420]
["E.09(590)","MUEBLES DE BAÑO Y COCINA                          ",null,null,null,null,{"$f":"TEXT(SUM(G44:G49), \"$ #,##0.00 ;\")","v":"$ 0.00 "}]
[385040,"SUMINISTRO Y COLOCACION DE DISPENSADOR DE PAPEL HIGIENICO JUMBO JR, COLOR HUMO, MARCA KIMBERLY CLARK PROFESIONAL, MODELO 94208, INCLUYE: NIVELADO, PLOMEO, MATERIALES MENORES Y DE CONSUMO, ELEMENTOS DE FIJACION, EQUIPO,  HERRAMIENTA, LIMPIEZA, MANO DE OBRA Y ACARREOS AL SITIO DE SU INSTALACION. EN CUALQUIER NIVEL.","PZA","2.0000",0,"CERO PESOS 00/100 M.N.",0,384421]
[385060,"SUMINISTRO Y COLOCACION DE DESPACHADOR TOALLA INTERDOBLADA, COLOR HUMO, MARCA KIMBERLY CLARK PROFESIONAL, MODELO 92260, INCLUYE: NIVELADO, PLOMEO, MATERIALES MENORES Y DE CONSUMO, ELEMENTOS DE FIJACION, EQUIPO,  HERRAMIENTA, LIMPIEZA, MANO DE OBRA Y ACARREOS AL SITIO DE SU INSTALACIÓN. EN CUALQUIER NIVEL.","PZA","2.0000",0,"CERO PESOS 00/100 M.N.",0,384422]
[590006,"SUMINISTRO E INSTALACION DE INODORO CON TANQUE BAJO, MODELO CADET PRO RH EL, COLOR BLANCO, MARCA AMERICAN STANDARD O SIMILAR, INCLUYE: ASIENTO DE PLASTICO, LLAVE ANGULAR FIG. 401, MANGUERA FLEXIBLE COFLEX, TANQUE, ACCESORIOS DE BRONCE PARA EL TANQUE BAJO, MATERIALES MENORES Y DE CONSUMO, ELEMENTOS DE FIJACION, LIMPIEZA, CUELLO DE CERA CON GUIA, PRUEBAS, HERRAMIENTAS, MANO DE OBRA Y ACARREO DE MATERIALES AL SITIO DE SU COLOCACION.","PZA","10.0000",0,"CERO PESOS 00/100 M.N.",0,384423]
[590112,"SUMINISTRO Y COLOCACION DE MINGITORIO BLANCO, MCA. AMERICAN STANDARD MOD. NIAGARA O SIMILAR. INCLUYE: LLAVE DE CAMPANA FIG. 17 MG MCA. URREA,  MATERIALES MENORES, PRUEBAS Y ACARREO DE MATERIALES AL SITIO DE SU COLOCACION.","PZA","3.0000",0,"CERO PESOS 00/100 M.N.",0,384424]
[590265,"SUMINISTRO Y COLOCACION DE OVALIN DE SOBREPONER, MCA. AMERICAN STANDAR, MOD. CADET UNIVERSAL MONOMANDO, INCLUYE: LLAVES ANGULARES FIG. 401, CESPOL CROMADO MCA. URREA FIG. 207, LLAVE ECONOMIZADORA DE CIERRE AUTOMATICO MARCA HELVEX FIG. TV-120, MANGUERA COFLEX, DESPERDICIOS, MATERIALES MENORES Y DE CONSUMO, ELEMENTOS DE FIJACION, MANO DE OBRA, HERRAMIENTA, LIMPIEZA, EQUIPO, PRUEBAS Y ACARREO DE MATERIALES AL SITIO DE SU COLOCACION.","PZA","6.0000",0,"CERO PESOS 00/100 M.N.",0,384425]
[590356,"SUMINISTRO Y COLOCACION DE VERTEDERO DE ACERO INOXIDABLE CAL. 18, TIPO 304 18/10, DE 40 X 40 X 26 M.,  INCLUYE: LLAVE DE CHORRO CROMADA FIG. 18-L, CHAPETON CROMADO, CONTRA CANASTA MCA. URREA FIG. 3801, MATERIALES MENORES Y DE CONSUMO, NIVELACION, SELLADO PERIMETRAL, PRUEBAS, HERRAMIENTAS, LIMPIEZA, MANO DE OBRA Y ACARREO AL SITIO DE SU COLOCACION.","PZA","2.0000",0,"CERO PESOS 00/100 M.N.",0,384426]
[null,"RESUMEN DE PARTIDAS"]
["BAS-CON-06856","CONSTRUCCIÓN DE OBRA COMPLEMENTARIA EN EL JARDÍN DE NIÑOS JAIME TORRES BODET CCT 14DJN0732V, UBICADO EN LA LOCALIDAD EL SALITRE, MUNICIPIO DE SAN MARTÍN DEL HIDALGO, JALISCO.\n",null,null,null,null,{"$f":"G17","v":"$ 0.00 "}]
["E","EDIFICIO E",null,null,null,null,{"$f":"G18","v":"$ 0.00 "}]
["E.01(319)","ENTREPISOS, CUBIERTA Y ACABADOS DE AZOTEA         ",null,null,null,null,{"$f":"G19","v":"$ 0.00 "}]
["E.02(355)","RECUBRIMIENTOS Y ACABADOS                         ",null,null,null,null,{"$f":"G21","v":"$ 0.00 "}]
["E.03(372)","PISOS                                             ",null,null,null,null,{"$f":"G23","v":"$ 0.00 "}]
["E.04(382)","ELEMENTOS COMPLEMENTARIOS DE ALBAÑILERIA          ",null,null,null,null,{"$f":"G25","v":"$ 0.00 "}]
["E.05(390)","CARPINTERIA                                       ",null,null,null,null,{"$f":"G27","v":"$ 0.00 "}]
["E.06(393)","PINTURA                                           ",null,null,null,null,{"$f":"G29","v":"$ 0.00 "}]
["E.07(410)","CANCELERIA, HERRERIA, ALUMINIO, VIDRIOS Y CHAPAS  ",null,null,null,null,{"$f":"G32","v":"$ 0.00 "}]
["E.08(510)","INSTALACION ELECTRICA EN EDIFICIO                 ",null,null,null,null,{"$f":"G40","v":"$ 0.00 "}]
["E.09(590)","MUEBLES DE BAÑO Y COCINA                          ",null,null,null,null,{"$f":"G43","v":"$ 0.00 "}]
[]
["IMPORTE CON LETRA (IVA INCLUIDO)",null,null,null,null,"SUBTOTAL M.N.",{"$f":"TEXT(G17,  \"$ #,##0.00 ;\")","v":"$ 0.00 "}]
[{"$f":"UPPER(CONVERTIRNUM(ROUND( G17 * 1.16, 2)))","v":"CERO PESOS 00/100 M.N."},null,null,null,null,"IVA M.N.",{"$f":"TEXT(ROUND( G17 * 0.16, 2),  \"$ #,##0.00 ;\")","v":"$ 0.00 "}]
[null,null,null,null,null,"TOTAL M.N.",{"$f":"TEXT(ROUND( G17 * 1.16, 2),  \"$ #,##0.00 ;\")","v":"$ 0.00 "}]